fUSD/lending_fUSD_20250824
["ID","MTS","AMOUNT","RATE_DAILY","PERIOD"]
[381135908,1756066243322,-507.0,0.00018828,2]
[381135909,1756066243331,-203.83661529,0.00018895,2]
[381135910,1756066243340,-311.35166164,0.00018927,2]
[381135911,1756066243349,-2452.36,0.00018941,2]
[381135912,1756066243358,-2005.9735,0.00019,2]
[381135913,1756066243370,-3925.38409625,0.00019116,2]
[381135914,1756066243381,-4218.555659,0.00019116,2]
[381135915,1756066243394,-2211.3331651,0.00019116,2]
[381135916,1756066243408,-6592.22653029,0.00019145,2]
[381135917,1756066243418,-203.83661529,0.00019161,2]
[381135918,1756066243428,-733.24981419,0.00019255,2]
[381135919,1756066243440,-14.13018581,0.00019255,2]
[381135920,1756066243450,-166.66,0.00019261,2]
[381135921,1756066243459,-212.11701231,0.0001937,2]
[381135922,1756066243468,-844.35788172,0.00019371,2]
[381135923,1756066243478,-160.0,0.00019371,2]
[381135924,1756066243489,-458.63746581,0.00019371,2]
[381135925,1756066243499,-21.67827323,0.00019426,2]
[381135926,1756066243510,-182.15834206,0.00019426,2]
[381135927,1756066243520,-233.28,0.00019441,2]
[381135928,1756066243529,-311.35166164,0.00019535,2]
[381135929,1756066243538,-998.50668477,0.00019612,2]
[381135932,1756066243618,-1027.48126085,0.00019612,2]
[381135934,1756066243630,-284.44117972,0.00019612,2]
[381135935,1756066243643,-270.57055999,0.00019612,2]
[381135936,1756066243656,-7774.27323502,0.00019612,2]
[381135937,1756066243666,-203.83661529,0.00019692,2]
[381135938,1756066243676,-150.0,0.00019701,4]
[381135939,1756066243686,-150.0,0.00019701,4]
[381135940,1756066243695,-150.0,0.00019701,4]
[381135941,1756066243705,-6592.22653029,0.00019734,2]
[381135942,1756066243715,-2452.36,0.00019802,2]
[381135943,1756066243724,-1000.0,0.00019844,2]
[381135944,1756066243734,-387.92,0.0001991,2]
[381135945,1756066243743,-203.83661529,0.00019958,2]
[381135946,1756066243754,-150.93,0.00019984,2]
[381135947,1756066243763,-1065.30523245,0.0002,2]
[381135948,1756066243772,-166.66,0.00020024,2]
[381135949,1756066243782,-10355.27292035,0.00020107,2]
[381135950,1756066243791,-150.0,0.00020139,4]
[381135951,1756066243801,-311.35166164,0.00020144,2]
[381135952,1756066243811,-295.4,0.00020187,2]
[381135953,1756066243820,-1979.79972806,0.00020207,2]
[381135954,1756066243830,-203.83661529,0.00020223,2]
[381135955,1756066243839,-6592.22653029,0.00020323,2]
[381135956,1756066243849,-322.6107,0.00020426,2]
[381135957,1756066243858,-209.08099929,0.00020426,2]
[381135958,1756066243871,-160.0,0.00020426,2]
[381135959,1756066243880,-5199.43684444,0.00020426,2]
[381135960,1756066243890,-151.0,0.00020426,2]
[381135961,1756066243900,-151.0,0.00020426,2]
[381135962,1756066243911,-151.0,0.00020426,2]
[381135963,1756066244237,-267.46074303,0.00020426,2]
[381135964,1756066244248,-151.0,0.00020426,2]
[381135965,1756066244259,-151.0,0.00020426,2]
[381135966,1756066244270,-151.0,0.00020426,2]
[381135967,1756066244280,-151.0,0.00020426,2]
[381135968,1756066244289,-207.265879,0.00020426,2]
[381135969,1756066244299,-300.0,0.00020426,2]
[381135970,1756066244308,-300.0,0.00020426,2]
[381135971,1756066244318,-300.0,0.00020426,2]
[381135972,1756066244328,-300.0,0.00020426,2]
[381135973,1756066244337,-300.0,0.00020426,2]
[381135974,1756066244346,-161.0,0.00020426,2]
[381135975,1756066244356,-1000.0,0.00020426,2]
[381135976,1756066244368,-251.01324646,0.00020426,2]
[381135977,1756066244378,-2813.65335393,0.00020481,2]
[381135978,1756066244387,-203.83661529,0.00020489,2]
[381135979,1756066244398,-1500.0,0.000205,2]
[381135980,1756066244409,-576.9952,0.00020549,2]
[381135981,1756066244421,-150.0,0.00020577,4]
[381135982,1756066244431,-1000.0,0.0002059,2]
[381135983,1756066244441,-10355.27292035,0.00020603,2]
[381135984,1756066244450,-5215.37,0.00020641,2]
[381135985,1756066244460,-2452.36,0.00020663,2]
[381135986,1756066244469,-5080.24,0.00020696,2]
[381135987,1756066244479,-311.35166164,0.00020753,2]
[381135988,1756066244490,-203.83661529,0.00020754,2]
[381135989,1756066244499,-1000.0,0.00020769,2]
[381135990,1756066244509,-2500.0,0.00020769,2]
[381135991,1756066244519,-166.66,0.00020787,2]
[381135992,1756066244528,-186.426,0.0002079,2]
[381135993,1756066244537,-205.116,0.0002079,2]
[381135994,1756066244547,-160.013,0.0002079,2]
[381135995,1756066244557,-207.128,0.0002079,2]
[381135996,1756066244567,-250.0,0.0002079,2]
[381135997,1756066244577,-154.0,0.0002079,2]
[381135998,1756066244587,-210.22,0.00020815,2]
[381135999,1756066244597,-3373.0,0.00020815,2]
[381136000,1756066244607,-1255.0,0.00020815,2]
[381136001,1756066244619,-2031.0,0.00020815,2]
[381136002,1756066244629,-925.0,0.00020815,2]
[381136003,1756066244639,-599.0,0.00020815,2]
[381136004,1756066244648,-1657.0,0.00020815,2]
[381136005,1756066244658,-1298.0,0.00020815,2]
[381136006,1756066244668,-566.0,0.00020815,2]
[381136007,1756066244677,-4154.0,0.00020815,2]
[381136008,1756066244687,-21513.0,0.00020815,2]
[381136009,1756066244696,-6144.0,0.00020815,2]
[381136010,1756066244705,-718.0,0.00020815,2]
[381136011,1756066244714,-894.0,0.00020815,2]
[381136012,1756066244724,-200.0,0.0002082,2]
[381136013,1756066244733,-1179.7703496,0.00020868,5]
[381136014,1756066244743,-180.57788391,0.00020868,5]
[381136015,1756066244752,-17841.8272,0.00020869,2]
[381136016,1756066244762,-400.0,0.000209,7]
[381136017,1756066244772,-6592.22653029,0.00020913,2]
[381136018,1756066244782,-500.2,0.00020917,7]
[381136019,1756066244791,-500.0,0.00020917,7]
[381136020,1756066244801,-500.0,0.00020917,7]
[381136021,1756066244810,-500.0,0.00020917,7]
[381136022,1756066244820,-500.0,0.00020917,7]
[381136023,1756066244829,-500.0,0.00020917,7]
[381136024,1756066244839,-500.0,0.00020917,7]
[381136025,1756066244848,-500.0,0.00020917,7]
[381136026,1756066244858,-500.0,0.00020917,7]
[381136027,1756066244870,-502.05,0.00020917,7]
[381136028,1756066244879,-212.11701231,0.0002092,7]
[381136029,1756066244889,-150.0,0.00021015,4]
[381136030,1756066244899,-203.83661529,0.0002102,2]
[381136031,1756066244909,-1038.3827203,0.00021089,2]
[381136032,1756066244919,-32842.5550528,0.00021089,2]
[381136033,1756066244929,-10355.27292035,0.00021099,2]
[381136034,1756066244939,-1116.0,0.00021108,2]
[381136035,1756066244948,-1345.33243978,0.00021116,3]
[381136036,1756066244958,-1345.33243977,0.00021116,3]
[381136037,1756066244968,-747.38,0.0002118,2]
[381136038,1756066244978,-13342.83943689,0.000212,2]
[381136039,1756066244987,-1116.0,0.00021208,2]
[381136040,1756066244997,-1000.0,0.00021215,2]
[381136041,1756066245006,-1000.0,0.00021215,2]
[381136042,1756066245015,-14228.71593452,0.00021216,2]
[381136043,1756066245176,-552.44840829,0.00021216,2]
[381136044,1756066245188,-463.23266482,0.00021216,2]
[381136048,1756066245436,-605.80207518,0.00021216,2]
[381136050,1756066245449,-3215.53155341,0.00021216,2]
[381136052,1756066245461,-550.67120004,0.00021216,2]
[381136054,1756066245473,-337.27249606,0.00021216,2]
[381136062,1756066247835,-500.0,0.00014157,2]
[381136063,1756066247852,-377.74238699,0.00014157,2]
[381136064,1756066247943,-122.25761301,0.00014157,2]
[381136065,1756066247960,-302.84785546,0.00014157,2]
[381136066,1756066247976,-500.0,0.00015631,2]
[381136067,1756066247993,-184.37024825,0.00015631,2]
[381136068,1756066248009,-199.71675746,0.00015631,2]
[381136069,1756066248024,-240.29190869,0.00015631,2]
[381136070,1756066248039,-1658.49372507,0.00020207,2]
[381136071,1756066248055,-191.39992069,0.00021216,2]
[381136072,1756066248074,-10006.0457476,0.00021216,2]
[381136073,1756066248094,-921.23341343,0.00021216,2]
[381136074,1756066248554,-494.17339096,0.00021216,2]
[381136075,1756066248574,-33804.0,0.00021216,2]
[381136076,1756066248600,-473.43458198,0.00021216,2]
[381136077,1756066248613,-263.98149903,0.00021216,2]
[381136078,1756066249260,-10578.64558781,0.00021216,2]
[381136079,1756066249283,-4750.0,0.00021216,2]
[381136080,1756066249294,-3987.99809844,0.00021216,2]
[381136081,1756066249306,-9495.8829,0.00021216,2]
[381136082,1756066249330,-4449.0402493,0.00021216,2]
[381136083,1756066249341,-830.75790658,0.00021216,2]
[381136084,1756066249352,-1287.65059539,0.00021216,2]
[381136085,1756066249363,-68360.40805467,0.00021216,2]
[381136086,1756066249375,-2335.29764046,0.00021229,2]
[381136087,1756066249384,-1525.16147452,0.00021229,2]
[381136088,1756066249394,-2335.29764046,0.00021236,2]
[381136089,1756066249409,-2062.48258005,0.00021238,2]
[381136090,1756066249418,-2062.48258005,0.00021239,2]
[381136091,1756066249428,-1525.16147452,0.0002124,2]
[381136092,1756066249438,-25177.1076493,0.00021241,2]
[381136093,1756066249449,-2063.30955965,0.00021242,2]
[381136094,1756066249459,-32850.49268439,0.00021244,2]
[381136095,1756066249468,-2063.30955965,0.00021251,2]
[381136096,1756066249477,-3373.80529227,0.00021257,2]
[381136097,1756066249487,-25177.1076493,0.00021258,2]
[381136098,1756066249498,-8054.38834506,0.00021259,2]
[381136099,1756066249507,-1654.98470558,0.00021259,2]
[381136100,1756066249517,-8054.38834506,0.00021259,2]
[381136101,1756066249527,-2063.30955965,0.00021263,2]
[381136102,1756066249536,-32850.49268439,0.00021266,2]
[381136103,1756066249546,-32850.49268439,0.00021267,2]
[381136104,1756066249556,-2063.30955965,0.00021268,2]
[381136105,1756066249567,-32850.49268439,0.00021271,2]
[381136106,1756066249577,-2063.30955965,0.00021271,2]
[381136107,1756066249588,-15457.14790886,0.00021272,2]
[381136108,1756066249599,-1525.16147452,0.00021281,2]
[381136109,1756066249610,-25177.1076493,0.00021285,2]
[381136110,1756066249622,-203.83661529,0.00021286,2]
[381136111,1756066249632,-15457.14790886,0.00021286,2]
[381136112,1756066249642,-2335.29764046,0.00021293,2]
[381136113,1756066249652,-452.18017843,0.00021294,2]
[381136114,1756066249664,-15457.14790886,0.00021297,2]
[381136115,1756066249673,-2335.29764046,0.00021298,2]
[381136116,1756066249683,-1654.98470558,0.00021299,2]
[381136117,1756066249693,-1654.98470558,0.00021306,2]
[381136118,1756066249702,-15457.14790886,0.00021306,2]
[381136119,1756066249711,-32850.49268439,0.00021315,2]
[381136120,1756066249721,-137107.0441447,0.00021318,2]
[381136121,1756066249733,-1409.23419676,0.00021318,2]
[381136122,1756066249746,-1767.9,0.00021318,2]
[381136123,1756066249757,-128684.82489903,0.00021318,2]
[381136130,1756066426892,2000.0,0.00019285,120]
[381136135,1756066685405,1000.0,0.00012955,3]
[381136136,1756066685482,1000.0,0.00012146,3]
[381136139,1756066806486,1000.0,0.00012955,3]
[381136140,1756066807091,1000.0,0.00012146,3]
[381136141,1756066867433,-530555.83453015,0.00032696,30]
[381136142,1756066867457,-407.62418438,0.00032696,120]
[381136143,1756066867481,-20383.31659753,0.00032696,120]
[381136144,1756066867505,-1146.5792629,0.00032696,120]
[381136145,1756066867529,-460.0,0.00032696,120]
[381136146,1756066867555,-500.0,0.00032696,120]
[381136147,1756066867582,-262.64798954,0.00032696,120]
[381136148,1756066867607,-1516.29101235,0.00032696,120]
[381136149,1756066867632,-2005.91653045,0.00032696,120]
[381136150,1756066867658,-191.86274123,0.00032696,120]
[381136151,1756066867682,-1000.0,0.00032696,30]
[381136152,1756066867706,-225.94727111,0.00032696,120]
[381136153,1756066867731,-297.94671902,0.00032696,120]
[381136154,1756066867756,-464.27091648,0.00032696,120]
[381136155,1756066867779,-165.72164741,0.00032696,30]
[381136156,1756066867803,-311.76513154,0.00032696,120]
[381136157,1756066867826,-314.28651779,0.00032696,120]
[381136158,1756066867850,-8844.36702796,0.00032696,120]
[381136159,1756066867874,-1702.76812173,0.00032696,60]
[381136160,1756066867898,-1435.08942124,0.00032696,120]
[381136161,1756066867922,-628.01997375,0.00032696,120]
[381136162,1756066867947,-274.94296382,0.00032696,120]
[381136163,1756066867971,-181.87074967,0.00032696,30]
[381136164,1756066867995,-10082.0,0.00032696,30]
[381136165,1756066868020,-7754.0,0.00032696,120]
[381136166,1756066868044,-70224.08,0.00032696,60]
[381136167,1756066868070,-15057.33863012,0.00032696,120]
[381136168,1756066868094,-203.33763,0.00032696,120]
[381136169,1756066868118,-41448.59,0.00032696,60]
[381136170,1756066868141,-860.85575218,0.00032696,30]
[381136171,1756066868166,-328.0,0.00032696,120]
[381136172,1756066868190,-749.0,0.00032696,120]
[381136173,1756066868214,-556.13633512,0.00032696,60]
[381136174,1756066868238,-1003.28849553,0.00032696,30]
[381136175,1756066868262,-1000.0,0.00032696,30]
[381136176,1756066868285,-1000.0,0.00032696,30]
[381136177,1756066868310,-1000.0,0.00032696,30]
[381136178,1756066868333,-1000.0,0.00032696,30]
[381136179,1756066868358,-1000.0,0.00032696,30]
[381136180,1756066868382,-1000.0,0.00032696,30]
[381136181,1756066868409,-1000.0,0.00032696,30]
[381136182,1756066868723,-1000.0,0.00032696,30]
[381136183,1756066868747,-1000.0,0.00032696,30]
[381136184,1756066868772,-1000.0,0.00032696,30]
[381136185,1756066868796,-1000.0,0.00032696,30]
[381136186,1756066868827,-1000.0,0.00032696,30]
[381136187,1756066868856,-1000.0,0.00032696,30]
[381136188,1756066868882,-1000.0,0.00032696,30]
[381136189,1756066868907,-867.98614836,0.00032696,30]
[381136190,1756066868931,-1000.0,0.00032696,30]
[381136191,1756066868955,-352.4182227,0.00032696,30]
[381136192,1756066868979,-871.38678928,0.00032696,30]
[381136193,1756066869007,-500.0,0.00032696,120]
[381136194,1756066869030,-500.0,0.00032696,120]
[381136195,1756066869054,-500.0,0.00032696,120]
[381136196,1756066869078,-500.0,0.00032696,120]
[381136197,1756066869102,-448.99297118,0.00032696,120]
[381136198,1756066869126,-500.0,0.00032696,120]
[381136199,1756066869151,-500.0,0.00032696,120]
[381136200,1756066869175,-500.0,0.00032696,120]
[381136201,1756066869200,-500.0,0.00032696,120]
[381136202,1756066869225,-500.0,0.00032696,120]
[381136203,1756066869249,-500.0,0.00032696,120]
[381136204,1756066869273,-364.60145725,0.00032696,120]
[381136205,1756066869297,-1000.0,0.00032696,30]
[381136206,1756066869322,-1000.0,0.00032696,30]
[381136207,1756066869345,-1000.0,0.00032696,30]
[381136208,1756066869368,-1000.0,0.00032696,30]
[381136209,1756066869392,-1000.0,0.00032696,120]
[381136210,1756066869416,-1000.0,0.00032696,120]
[381136211,1756066869439,-1000.0,0.00032696,30]
[381136212,1756066869464,-1000.0,0.00032696,120]
[381136213,1756066869488,-1000.0,0.00032696,60]
[381136214,1756066869512,-1000.0,0.00032696,30]
[381136215,1756066869535,-1000.0,0.00032696,60]
[381136216,1756066869562,-1000.0,0.00032696,60]
[381136217,1756066869588,-1000.0,0.00032696,60]
[381136218,1756066869612,-1000.0,0.00032696,30]
[381136219,1756066869638,-1000.0,0.00032696,30]
[381136220,1756066869663,-1000.0,0.00032696,120]
[381136221,1756066869688,-1000.0,0.00032696,60]
[381136222,1756066869712,-1000.0,0.00032696,30]
[381136223,1756066869739,-832.80457898,0.00032696,120]
[381136224,1756066869764,-1000.0,0.00032696,60]
[381136225,1756066869788,-578.94172708,0.00032696,120]
[381136226,1756066869820,-1000.0,0.00032696,30]
[381136227,1756066869844,-1000.0,0.00032696,30]
[381136228,1756066869868,-1000.0,0.00032696,30]
[381136229,1756066869892,-1000.0,0.00032696,60]
[381136230,1756066869916,-1000.0,0.00032696,60]
[381136231,1756066869939,-1084.53,0.00032696,60]
[381136232,1756066869963,-395.0,0.00032696,60]
[381136233,1756066869987,-1056.83726145,0.00032696,90]
[381136234,1756066870011,-318.68606654,0.00032696,120]
[381136235,1756066870034,-525.34405553,0.00032696,30]
[381136236,1756066870059,-392.62920118,0.00032696,30]
[381136237,1756066870082,-1057.77033748,0.00032696,120]
[381136238,1756066870107,-400.5106295,0.00032696,30]
[381136239,1756066870131,-900.830047,0.00032696,30]
[381136240,1756066870156,-1000.0,0.00032696,30]
[381136241,1756066870180,-403.0796139,0.00032696,30]
[381136242,1756066870204,-760.01117474,0.00032696,30]
[381136243,1756066870228,-1075.35910426,0.00032696,30]
[381136244,1756066870252,-612.93714225,0.00032696,120]
[381136245,1756066870275,-266.04053491,0.00032696,120]
[381136246,1756066870298,-390.05526103,0.00032696,30]
[381136247,1756066870322,-602.5243829,0.00032696,120]
[381136248,1756066870345,-466.29832427,0.00032696,120]
[381136249,1756066870369,-652.91761213,0.00032696,120]
[381136250,1756066870394,-882.18387427,0.00032696,30]
[381136251,1756066870417,-890.80572934,0.00032696,30]
[381136252,1756066870441,-313.72502228,0.00032696,120]
[381136253,1756066870464,-978.62235394,0.00032696,30]
[381136254,1756066870488,-412.94583833,0.00032696,90]
[381136255,1756066870512,-1076.97572385,0.00032696,120]
[381136256,1756066870535,-959.52290009,0.00032696,30]
[381136257,1756066870560,-1079.10399797,0.00032696,120]
[381136258,1756066870584,-548.40525996,0.00032696,120]
[381136259,1756066870607,-899.34844045,0.00032696,120]
[381136260,1756066870630,-214.71663969,0.00032696,30]
[381136261,1756066870658,-905.25727135,0.00032696,60]
[381136262,1756066870682,-991.27270863,0.00032696,30]
[381136263,1756066870706,-185.0125409,0.00032696,120]
[381136264,1756066870730,-1029.2691811,0.00032696,30]
[381136265,1756066870753,-524.00849139,0.00032696,120]
[381136266,1756066870777,-1043.58992742,0.00032696,30]
[381136267,1756066870801,-581.76075816,0.00032696,120]
[381136268,1756066870825,-362.23169967,0.00032696,30]
[381136269,1756066870848,-479.69822661,0.00032696,120]
[381136270,1756066870872,-292.87315065,0.00032696,120]
[381136271,1756066870897,-734.78880482,0.00032696,120]
[381136272,1756066870921,-435.78499184,0.00032696,30]
[381136273,1756066870945,-423.54595686,0.00032696,120]
[381136274,1756066870970,-983.57146082,0.00032696,30]
[381136275,1756066870994,-473.60462069,0.00032696,120]
[381136276,1756066871017,-1043.42068528,0.00032696,30]
[381136277,1756066871041,-919.52155416,0.00032696,120]
[381136278,1756066871323,-755.30367072,0.00032696,120]
[381136279,1756066871348,-744.79352357,0.00032696,30]
[381136280,1756066871372,-997.0,0.00032696,30]
[381136281,1756066871397,-455.10686511,0.00032696,30]
[381136282,1756066871423,-222.56835087,0.00032696,120]
[381136283,1756066871446,-397.71058946,0.00032696,120]
[381136284,1756066871470,-480.60491142,0.00032696,120]
[381136285,1756066871494,-302.58498817,0.00032696,30]
[381136286,1756066871517,-911.41540885,0.00032696,30]
[381136287,1756066871540,-200.8581107,0.00032696,110]
[381136288,1756066871569,-1042.74125465,0.00032696,120]
[381136289,1756066871593,-576.08026466,0.00032696,120]
[381136290,1756066871619,-210.37714795,0.00032696,30]
[381136291,1756066871646,-794.29763187,0.00032696,120]
[381136292,1756066871670,-555.55919357,0.00032696,30]
[381136293,1756066871694,-199.65631214,0.00032696,30]
[381136294,1756066871717,-275.55183558,0.00032696,30]
[381136295,1756066871741,-854.69153017,0.00032696,30]
[381136296,1756066871764,-210.19554515,0.00032696,31]
[381136297,1756066871787,-372.02307884,0.00032696,60]
[381136298,1756066871810,-309.31419982,0.00032696,120]
[381136299,1756066871833,-937.31716061,0.00032696,120]
[381136300,1756066871857,-1021.49260509,0.00032696,120]
[381136301,1756066871880,-369.94578182,0.00032696,120]
[381136302,1756066871909,-219.86230383,0.00032696,120]
[381136303,1756066871934,-173.52559518,0.00032696,120]
[381136304,1756066871960,-270.6044513,0.00032696,30]
[381136305,1756066871989,-712.98012054,0.00032696,120]
[381136306,1756066872015,-555.0887608,0.00032696,120]
[381136307,1756066872039,-529.22403048,0.00032696,120]
[381136308,1756066872063,-442.98920653,0.00032696,30]
[381136309,1756066872088,-1046.88677358,0.00032696,30]
[381136310,1756066872113,-503.75319901,0.00032696,120]
[381136311,1756066872137,-997.115737,0.00032696,120]
[381136312,1756066872166,-408.72181219,0.00032696,120]
[381136313,1756066872191,-1022.22567907,0.00032696,120]
[381136314,1756066872216,-486.32068146,0.00032696,60]
[381136315,1756066872240,-425.20052488,0.00032696,30]
[381136316,1756066872264,-263.73863689,0.00032696,120]
[381136317,1756066872288,-463.45249879,0.00032696,120]
[381136318,1756066872313,-495.98618151,0.00032696,120]
[381136319,1756066872337,-773.57293568,0.00032696,60]
[381136320,1756066872363,-824.66829287,0.00032696,120]
[381136321,1756066872389,-210.58856366,0.00032696,120]
[381136322,1756066872415,-359.7647594,0.00032696,120]
[381136323,1756066872439,-604.0,0.00032696,120]
[381136324,1756066872463,-8151.77270374,0.00032696,30]
[381136325,1756066872490,-2555.90609127,0.00032696,120]
[381136326,1756066872516,-5000.0,0.00032696,60]
[381136327,1756066872543,-5000.0,0.00032696,60]
[381136328,1756066872575,-428.75,0.00032696,60]
[381136329,1756066872603,-1549.04429604,0.00032696,120]
[381136330,1756066872629,-228.0,0.00032696,60]
[381136331,1756066872668,-301.44915989,0.00032696,60]
[381136332,1756066872696,-3904.39917702,0.00032696,120]
[381136333,1756066872721,-2508.38212209,0.00032696,120]
[381136334,1756066872746,-1071.0,0.00032696,120]
[381136335,1756066872770,-1000.0,0.00032696,120]
[381136336,1756066872795,-1000.0,0.00032696,120]
[381136337,1756066872820,-1000.0,0.00032696,120]
[381136338,1756066872845,-1000.0,0.00032696,120]
[381136339,1756066872869,-1000.0,0.00032696,120]
[381136340,1756066872894,-4200.0,0.00032696,120]
[381136341,1756066872920,-369.3066284,0.00032696,30]
[381136342,1756066872945,-14265.80399872,0.00032696,60]
[381136343,1756066872969,-2000000.0,0.00032696,90]
[381136344,1756066873004,-1000000.0,0.00032696,60]
[381136345,1756066873056,-50000.0,0.00032696,30]
[381136346,1756066873104,-50000.0,0.00032696,31]
[381136347,1756066873159,-18590.96850997,0.00032696,32]
[381136348,1756066883094,-31409.03149003,0.00032696,32]
[381136349,1756066883121,-50000.0,0.00032696,33]
[381136350,1756066883158,-50000.0,0.00032696,34]
[381136351,1756066883185,-50000.0,0.00032696,35]
[381136352,1756066883211,-1000.0,0.00032696,120]
[381136353,1756066883237,-843.6,0.00032696,120]
[381136354,1756066883261,-84862.14654679,0.00032696,30]
[381136355,1756066883287,-330.23683105,0.00032696,120]
[381136356,1756066883313,-5603.16021284,0.00032696,30]
[381136357,1756066883347,-231368.15219079,0.00032696,30]
[381136358,1756066883373,-5000.0,0.00032696,30]
[381136359,1756066883398,-15053.86887808,0.00032696,30]
[381136360,1756066883424,-5168.48620834,0.00032696,30]
[381136361,1756066883451,-3469361.31764208,0.00032696,30]
[381136362,1756066903392,-4000000.0,0.00032696,30]
[381136363,1756066910568,-78866.98571055,0.00032696,30]
[381136364,1756066910596,-8085.29834748,0.00032696,30]
[381136365,1756066910621,-17467.4232386,0.00032696,30]
[381136366,1756066910644,-821.50919709,0.00032696,120]
[381136367,1756066910669,-9933.0,0.00032696,30]
[381136368,1756066910694,-2060.66133792,0.00032696,30]
[381136369,1756066910717,-302.0,0.00032696,120]
[381136370,1756066910741,-3199.0,0.00032696,30]
[381136371,1756066910764,-1109.70090052,0.00032696,120]
[381136372,1756066910788,-1000.0,0.00032696,90]
[381136373,1756066910813,-50000.0,0.00032696,36]
[381136374,1756066910839,-50000.0,0.00032696,37]
[381136375,1756066910864,-50000.0,0.00032696,38]
[381136376,1756066910890,-50000.0,0.00032696,39]
[381136377,1756066910914,-843.599999,0.00032696,90]
[381136378,1756066910938,-2018.77,0.00032696,30]
[381136379,1756066910962,-424.04,0.00032696,30]
[381136380,1756066910988,-2899.3705002,0.00032696,61]
[381136381,1756066911014,-965.43683188,0.00032696,120]
[381136382,1756066911039,-2355017.80940352,0.00032696,120]
[381136383,1756066911062,-1149.5106264,0.00032696,120]
[381136384,1756066923819,1000.0,0.00012955,3]
[381136385,1756066923906,1000.0,0.00012146,3]
[381136386,1756067020730,-847.88,0.00021945,30]
[381136387,1756067021639,-170.92611112,0.00023425,30]
[381136388,1756067022094,-170.92611112,0.00023671,30]
[381136389,1756067022618,-1010.51778558,0.00026,30]
[381136390,1756067022706,-150.0,0.00026146,30]
[381136391,1756067022731,-1581.48644182,0.00026146,30]
[381136392,1756067022756,-150.0,0.00026146,30]
[381136393,1756067022785,-9160.60945849,0.00026146,30]
[381136394,1756067022812,-150.0,0.00026146,30]
[381136395,1756067022837,-1298.79589429,0.00026146,30]
[381136396,1756067022862,-183.15122277,0.00026146,30]
[381136397,1756067022889,-150.0,0.00026146,30]
[381136398,1756067022913,-503.72067489,0.00026146,30]
[381136399,1756067023101,-844.35788172,0.00027,30]
[381136400,1756067023126,-452.00840444,0.00027,30]
[381136401,1756067023151,-212.11701231,0.00027,30]
[381136402,1756067023265,-2000.0,0.00027397,30]
[381136403,1756067023294,-2000.0,0.00027397,30]
[381136404,1756067023322,-2000.0,0.00027397,30]
[381136405,1756067023349,-2000.0,0.00027397,30]
[381136406,1756067023376,-2000.0,0.00027397,30]
[381136407,1756067023402,-2000.0,0.00027397,30]
[381136408,1756067023428,-2000.0,0.00027397,30]
[381136409,1756067023465,-2000.0,0.00027397,30]
[381136410,1756067023496,-2000.0,0.00027397,30]
[381136411,1756067023525,-2000.0,0.00027397,30]
[381136412,1756067023553,-2000.0,0.00027397,30]
[381136413,1756067023579,-2000.0,0.00027397,30]
[381136414,1756067023613,-2000.0,0.00027397,30]
[381136415,1756067023642,-2000.0,0.00027397,30]
[381136416,1756067023669,-1189.08454219,0.00027397,30]
[381136417,1756067023706,-600.0,0.00027397,80]
[381136418,1756067023835,-2171.83255711,0.00028,30]
[381136419,1756067023862,-500.0,0.00028,30]
[381136420,1756067023892,-844.35788172,0.00028,30]
[381136421,1756067023919,-458.63746581,0.00028,30]
[381136422,1756067023945,-212.11701231,0.00028,30]
[381136423,1756067023973,-847.88,0.00028169,30]
[381136424,1756067024048,-500.0,0.000285,30]
[381136425,1756067024080,-500.0,0.000285,30]
[381136426,1756067024113,-500.0,0.00028767,30]
[381136427,1756067024139,-500.0,0.00028767,30]
[381136428,1756067024165,-500.0,0.00028767,30]
[381136429,1756067024190,-500.0,0.00028767,30]
[381136430,1756067024215,-500.0,0.00028767,30]
[381136431,1756067024241,-500.0,0.00028767,30]
[381136432,1756067024266,-500.0,0.00028767,30]
[381136433,1756067024292,-1000.0,0.00028767,45]
[381136434,1756067024317,-1000.0,0.00028767,45]
[381136435,1756067024344,-1000.0,0.00028767,45]